fUST/lending_fUST_20240824
["ID","MTS","AMOUNT","RATE_DAILY","PERIOD"]
[335711117,1724458243892,-858.68,0.00013698,2]
[335711118,1724458243902,-660.37,0.00013698,2]
[335711119,1724458243911,-500.0,0.00013698,2]
[335711120,1724458243921,-1346.49,0.00013698,2]
[335711121,1724458243930,-500.0,0.00013698,2]
[335711122,1724458243940,-1899.37,0.00013698,2]
[335711123,1724458243949,-500.0,0.00013698,2]
[335711124,1724458243958,-500.0,0.00013698,2]
[335711125,1724458243968,-500.0,0.00013698,2]
[335711126,1724458243978,-500.0,0.00013698,2]
[335711127,1724458243987,-886.72,0.00013698,2]
[335711128,1724458243997,-318.01652731,0.00013698,2]
[335711129,1724458244006,-779.76,0.00013698,2]
[335711130,1724458244016,-912.16,0.00013698,2]
[335711131,1724458244028,-500.0,0.00013698,2]
[335711132,1724458244037,-500.0,0.00013698,2]
[335711133,1724458244047,-500.0,0.00013698,2]
[335711134,1724458244057,-500.0,0.00013698,2]
[335711135,1724458244067,-500.0,0.00013698,2]
[335711136,1724458244076,-519.74873282,0.00013698,2]
[335711137,1724458244086,-500.0,0.00013698,2]
[335711138,1724458244096,-500.0,0.00013698,2]
[335711139,1724458244106,-500.0,0.00013698,2]
[335711140,1724458244116,-500.0,0.00013698,2]
[335711141,1724458244126,-500.0,0.00013698,2]
[335711142,1724458244136,-500.0,0.00013698,2]
[335711143,1724458244147,-500.0,0.00013698,2]
[335711144,1724458244157,-570.58,0.00013698,2]
[335711145,1724458244167,-740.17,0.00013698,2]
[335711146,1724458244176,-500.0,0.00013698,2]
[335711147,1724458244186,-500.0,0.00013698,2]
[335711148,1724458244195,-543.41,0.00013698,2]
[335711149,1724458244204,-586.86,0.00013698,2]
[335711150,1724458244214,-500.0,0.00013698,2]
[335711151,1724458244223,-500.0,0.00013698,2]
[335711152,1724458244232,-1194.39,0.00013698,2]
[335711153,1724458244242,-12214.04,0.00013698,2]
[335711154,1724458244252,-500.0,0.00013698,2]
[335711155,1724458244261,-317.68978065,0.00013698,2]
[335711156,1724458244271,-500.0,0.00013698,2]
[335711157,1724458244281,-500.0,0.00013698,2]
[335711158,1724458244291,-693.18,0.00013698,2]
[335711159,1724458244300,-2600.24,0.00013698,2]
[335711160,1724458244310,-670.23,0.00013698,2]
[335711161,1724458244320,-500.0,0.00013698,2]
[335711162,1724458244330,-522.93027776,0.00013698,2]
[335711163,1724458244341,-500.0,0.00013698,2]
[335711164,1724458244353,-500.0,0.00013698,2]
[335711165,1724458244364,-1391.87,0.00013698,2]
[335711166,1724458244374,-500.0,0.00013698,2]
[335711167,1724458244384,-846.56,0.00013698,2]
[335711168,1724458244394,-387.78347306,0.00013698,2]
[335711169,1724458244404,-500.0,0.00013698,2]
[335711170,1724458244415,-500.0,0.00013698,2]
[335711171,1724458244425,-1155.83,0.00013698,2]
[335711172,1724458244435,-500.0,0.00013698,2]
[335711173,1724458244444,-500.0,0.00013698,2]
[335711174,1724458244456,-3682.06,0.00013698,2]
[335711175,1724458244466,-705.59,0.00013698,2]
[335711176,1724458244476,-941.75,0.00013698,2]
[335711177,1724458244485,-500.0,0.00013698,2]
[335711178,1724458244495,-580.33,0.00013698,2]
[335711179,1724458244504,-500.0,0.00013698,2]
[335711180,1724458244514,-885.87,0.00013698,2]
[335711181,1724458244523,-866.11,0.00013698,2]
[335711182,1724458244532,-500.0,0.00013698,2]
[335711183,1724458244542,-500.0,0.00013698,2]
[335711184,1724458244551,-500.0,0.00013698,2]
[335711185,1724458244561,-500.0,0.00013698,2]
[335711186,1724458244570,-500.0,0.00013698,2]
[335711187,1724458244580,-500.0,0.00013698,2]
[335711188,1724458244589,-500.0,0.00013698,2]
[335711189,1724458244599,-500.0,0.00013698,2]
[335711190,1724458244608,-500.0,0.00013698,2]
[335711191,1724458244619,-1473.24,0.00013698,2]
[335711192,1724458244630,-500.0,0.00013698,2]
[335711193,1724458244640,-500.0,0.00013698,2]
[335711194,1724458244650,-500.0,0.00013698,2]
[335711195,1724458244661,-500.0,0.00013698,2]
[335711196,1724458244671,-156.26,0.00013698,2]
[335711197,1724458244682,-500.0,0.00013698,2]
[335711198,1724458244691,-665.07,0.00013698,2]
[335711199,1724458244702,-500.0,0.00013698,2]
[335711200,1724458244712,-500.0,0.00013698,2]
[335711201,1724458244721,-500.0,0.00013698,2]
[335711202,1724458244731,-457.26,0.00013698,2]
[335711203,1724458244740,-1380.6,0.00013698,2]
[335711204,1724458244750,-500.0,0.00013698,2]
[335711205,1724458244759,-790.88,0.00013698,2]
[335711206,1724458244769,-605.09,0.00013698,2]
[335711207,1724458244779,-500.0,0.00013698,2]
[335711208,1724458244789,-451.33411107,0.00013698,2]
[335711209,1724458244800,-2103.95,0.00013698,2]
[335711210,1724458244811,-4822.73,0.00013698,2]
[335711211,1724458244820,-9121.1,0.00013698,2]
[335711212,1724458244830,-500.0,0.00013698,2]
[335711213,1724458244840,-500.0,0.00013698,2]
[335711214,1724458244849,-3622.42,0.00013698,2]
[335711215,1724458244859,-750.15,0.00013698,2]
[335711216,1724458244869,-430.23889698,0.00013698,2]
[335711217,1724458244878,-500.0,0.00013698,2]
[335711218,1724458244889,-500.0,0.00013698,2]
[335711219,1724458244898,-500.0,0.00013698,2]
[335711220,1724458244907,-6749.76,0.00013698,2]
[335711221,1724458244917,-665.48,0.00013698,2]
[335711222,1724458244926,-500.0,0.00013698,2]
[335711223,1724458244936,-18925.57,0.00013698,2]
[335711224,1724458244945,-500.0,0.00013698,2]
[335711225,1724458244954,-500.0,0.00013698,2]
[335711226,1724458244964,-962.54,0.00013698,2]
[335711227,1724458244973,-916.01,0.00013698,2]
[335711228,1724458244984,-500.0,0.00013698,2]
[335711229,1724458244993,-500.0,0.00013698,2]
[335711230,1724458245004,-970.09,0.00013698,2]
[335711231,1724458245014,-500.0,0.00013698,2]
[335711232,1724458245024,-564.47,0.00013698,2]
[335711233,1724458245034,-500.0,0.00013698,2]
[335711234,1724458245045,-500.0,0.00013698,2]
[335711235,1724458245054,-500.0,0.00013698,2]
[335711236,1724458245064,-861.18,0.00013698,2]
[335711237,1724458245074,-2066.15,0.00013698,2]
[335711238,1724458245083,-500.0,0.00013698,2]
[335711239,1724458245093,-904.88,0.00013698,2]
[335711240,1724458245103,-500.0,0.00013698,2]
[335711241,1724458245113,-9347.03,0.00013698,2]
[335711242,1724458245123,-500.0,0.00013698,2]
[335711243,1724458245132,-3086.88,0.00013698,2]
[335711244,1724458245142,-500.0,0.00013698,2]
[335711245,1724458245152,-500.0,0.00013698,2]
[335711246,1724458245161,-500.0,0.00013698,2]
[335711247,1724458245171,-1814.32,0.00013698,2]
[335711248,1724458245180,-500.0,0.00013698,2]
[335711249,1724458245189,-500.0,0.00013698,2]
[335711250,1724458245199,-500.0,0.00013698,2]
[335711251,1724458245209,-500.0,0.00013698,2]
[335711252,1724458245218,-500.0,0.00013698,2]
[335711253,1724458245228,-686.43,0.00013698,2]
[335711254,1724458245238,-1253.62,0.00013698,2]
[335711255,1724458245248,-500.0,0.00013698,2]
[335711256,1724458245257,-538.54,0.00013698,2]
[335711257,1724458245267,-500.0,0.00013698,2]
[335711258,1724458245276,-17843.3,0.00013698,2]
[335711259,1724458245286,-500.0,0.00013698,2]
[335711260,1724458245296,-500.0,0.00013698,2]
[335711261,1724458245305,-500.0,0.00013698,2]
[335711262,1724458245315,-500.0,0.00013698,2]
[335711263,1724458245325,-696.58,0.00013698,2]
[335711264,1724458245334,-500.0,0.00013698,2]
[335711265,1724458245344,-544.70045129,0.00013698,2]
[335711266,1724458245354,-1053.03,0.00013698,2]
[335711267,1724458245363,-599.68,0.00013698,2]
[335711268,1724458245373,-458.5888894,0.00013698,2]
[335711269,1724458245383,-11870.86,0.00013698,2]
[335711270,1724458245392,-500.0,0.00013698,2]
[335711271,1724458245402,-592.84,0.00013698,2]
[335711272,1724458245412,-500.0,0.00013698,2]
[335711273,1724458245422,-500.0,0.00013698,2]
[335711274,1724458245432,-500.0,0.00013698,2]
[335711275,1724458245442,-500.0,0.00013698,2]
[335711276,1724458245452,-5338.88,0.00013698,2]
[335711277,1724458245462,-825.27,0.00013698,2]
[335711278,1724458245472,-500.0,0.00013698,2]
[335711279,1724458245482,-686.96,0.00013698,2]
[335711280,1724458245492,-500.0,0.00013698,2]
[335711281,1724458245502,-500.0,0.00013698,2]
[335711282,1724458245512,-500.0,0.00013698,2]
[335711283,1724458245522,-565.81755319,0.00013698,2]
[335711284,1724458245531,-776.59,0.00013698,2]
[335711285,1724458245542,-500.0,0.00013698,2]
[335711286,1724458245551,-2033.85,0.00013698,2]
[335711287,1724458245561,-500.0,0.00013698,2]
[335711288,1724458245571,-500.0,0.00013698,2]
[335711289,1724458245581,-1907.52,0.00013698,2]
[335711290,1724458245590,-500.0,0.00013698,2]
[335711291,1724458245600,-1594.89,0.00013698,2]
[335711292,1724458245610,-500.0,0.00013698,2]
[335711293,1724458245620,-500.0,0.00013698,2]
[335711294,1724458245633,-500.0,0.00013698,2]
[335711295,1724458245643,-500.0,0.00013698,2]
[335711296,1724458245652,-500.0,0.00013698,2]
[335711297,1724458245662,-500.0,0.00013698,2]
[335711298,1724458245672,-450.03357233,0.00013698,2]
[335711299,1724458245681,-500.0,0.00013698,2]
[335711300,1724458245691,-1060.64,0.00013698,2]
[335711301,1724458245700,-500.0,0.00013698,2]
[335711302,1724458245710,-500.0,0.00013698,2]
[335711303,1724458245720,-500.0,0.00013698,2]
[335711304,1724458245730,-500.0,0.00013698,2]
[335711305,1724458245739,-500.0,0.00013698,2]
[335711306,1724458245749,-500.0,0.00013698,2]
[335711307,1724458245758,-614.49,0.00013698,2]
[335711308,1724458245770,-500.0,0.00013698,2]
[335711310,1724458245780,-421.01,0.00013698,2]
[335711311,1724458245791,-500.0,0.00013698,2]
[335711312,1724458245802,-500.0,0.00013698,2]
[335711313,1724458245813,-376.95887794,0.00013698,2]
[335711314,1724458245823,-500.0,0.00013698,2]
[335711315,1724458245834,-2191.33,0.00013698,2]
[335711316,1724458245844,-884.53,0.00013698,2]
[335711317,1724458245855,-500.0,0.00013698,2]
[335711318,1724458245865,-1202.28,0.00013698,2]
[335711319,1724458245875,-638.12,0.00013698,2]
[335711320,1724458245887,-500.0,0.00013698,2]
[335711321,1724458245895,-632.8,0.00013698,2]
[335711322,1724458245905,-500.0,0.00013698,2]
[335711324,1724458245914,-500.0,0.00013698,2]
[335711326,1724458245924,-500.0,0.00013698,2]
[335711327,1724458245934,-805.22,0.00013698,2]
[335711328,1724458245943,-4468.44,0.00013698,2]
[335711329,1724458245954,-2519.58,0.00013698,2]
[335711330,1724458245965,-2174.33,0.00013698,2]
[335711331,1724458245974,-298.12779295,0.00013698,2]
[335711332,1724458245985,-500.0,0.00013698,2]
[335711333,1724458245994,-705.5,0.00013698,2]
[335711334,1724458246006,-585.14,0.00013698,2]
[335711335,1724458246016,-500.0,0.00013698,2]
[335711336,1724458246026,-9882.79,0.00013698,2]
[335711337,1724458246037,-558.15636667,0.00013698,2]
[335711338,1724458246047,-3633.63,0.00013698,2]
[335711339,1724458246057,-1200.04,0.00013698,2]
[335711342,1724458246066,-500.0,0.00013698,2]
[335711344,1724458246233,-500.0,0.00013698,2]
[335711345,1724458246243,-965.26,0.00013698,2]
[335711346,1724458246253,-500.0,0.00013698,2]
[335711347,1724458246262,-500.0,0.00013698,2]
[335711348,1724458246273,-500.0,0.00013698,2]
[335711349,1724458246282,-500.0,0.00013698,2]
[335711350,1724458246292,-500.0,0.00013698,2]
[335711351,1724458246301,-666.63,0.00013698,2]
[335711352,1724458246311,-500.0,0.00013698,2]
[335711353,1724458246322,-500.0,0.00013698,2]
[335711354,1724458246332,-7294.55,0.00013698,2]
[335711355,1724458246341,-1409.87,0.00013698,2]
[335711356,1724458246351,-729.9,0.00013698,2]
[335711357,1724458246361,-500.0,0.00013698,2]
[335711358,1724458246371,-500.0,0.00013698,2]
[335711359,1724458246381,-686.56,0.00013698,2]
[335711360,1724458246391,-13779.17,0.00013698,2]
[335711361,1724458246401,-1521.11,0.00013698,2]
[335711362,1724458246410,-500.0,0.00013698,2]
[335711363,1724458246419,-3303.73,0.00013698,2]
[335711364,1724458246429,-500.0,0.00013698,2]
[335711365,1724458246440,-1621.63,0.00013698,2]
[335711366,1724458246451,-502.13180334,0.00013698,2]
[335711367,1724458246462,-500.0,0.00013698,2]
[335711368,1724458246471,-10333.45,0.00013698,2]
[335711369,1724458246481,-389.40762411,0.00013698,2]
[335711370,1724458246491,-659.87,0.00013698,2]
[335711371,1724458246501,-500.0,0.00013698,2]
[335711372,1724458246510,-3653.27,0.00013698,2]
[335711373,1724458246520,-791.22,0.00013698,2]
[335711374,1724458246530,-2082.07,0.00013698,2]
[335711375,1724458246539,-500.0,0.00013698,2]
[335711376,1724458246549,-500.0,0.00013698,2]
[335711377,1724458246560,-560.74,0.00013698,2]
[335711378,1724458246569,-2595.99,0.00013698,2]
[335711379,1724458246579,-500.0,0.00013698,2]
[335711380,1724458246588,-3022.0,0.00013698,2]
[335711381,1724458246598,-500.0,0.00013698,2]
[335711382,1724458246607,-500.0,0.00013698,2]
[335711383,1724458246617,-500.0,0.00013698,2]
[335711384,1724458246626,-500.0,0.00013698,2]
[335711385,1724458246642,-527.42,0.00013698,2]
[335711386,1724458246651,-500.0,0.00013698,2]
[335711387,1724458246661,-1550.7,0.00013698,2]
[335711388,1724458246671,-500.0,0.00013698,2]
[335711389,1724458246680,-500.0,0.00013698,2]
[335711390,1724458246690,-2218.9,0.00013698,2]
[335711391,1724458246700,-1081.96,0.00013698,2]
[335711392,1724458246710,-500.0,0.00013698,2]
[335711393,1724458246720,-500.0,0.00013698,2]
[335711394,1724458246730,-570.06,0.00013698,2]
[335711395,1724458246739,-500.0,0.00013698,2]
[335711396,1724458246750,-1359.11,0.00013698,2]
[335711397,1724458246761,-536.33,0.00013698,2]
[335711398,1724458246771,-500.0,0.00013698,2]
[335711399,1724458246781,-500.0,0.00013698,2]
[335711400,1724458246793,-1186.31,0.00013698,2]
[335711401,1724458246803,-968.41,0.00013698,2]
[335711402,1724458246814,-688.6,0.00013698,2]
[335711403,1724458246825,-2158.67,0.00013698,2]
[335711404,1724458246836,-500.0,0.00013698,2]
[335711405,1724458246848,-1025.84,0.00013698,2]
[335711406,1724458246859,-4398.76,0.00013698,2]
[335711407,1724458246869,-500.0,0.00013698,2]
[335711408,1724458246878,-500.0,0.00013698,2]
[335711409,1724458246891,-500.0,0.00013698,2]
[335711410,1724458246900,-500.0,0.00013698,2]
[335711411,1724458246910,-500.0,0.00013698,2]
[335711412,1724458246919,-5506.24,0.00013698,2]
[335711413,1724458246929,-500.0,0.00013698,2]
[335711414,1724458246938,-472.73768463,0.00013698,2]
[335711415,1724458246947,-500.0,0.00013698,2]
[335711416,1724458246957,-500.0,0.00013698,2]
[335711417,1724458246968,-500.0,0.00013698,2]
[335711418,1724458246977,-1767.35,0.00013698,2]
[335711419,1724458246986,-1239.82,0.00013698,2]
[335711420,1724458246996,-500.0,0.00013698,2]
[335711421,1724458247006,-500.0,0.00013698,2]
[335711422,1724458247017,-500.0,0.00013698,2]
[335711423,1724458247026,-673.6,0.00013698,2]
[335711424,1724458247035,-500.0,0.00013698,2]
[335711425,1724458247045,-832.89,0.00013698,2]
[335711426,1724458247054,-500.0,0.00013698,2]
[335711427,1724458247063,-1759.38,0.00013698,2]
[335711428,1724458247072,-6112.0,0.00013698,2]
[335711429,1724458247081,-500.0,0.00013698,2]
[335711430,1724458247091,-2081.06,0.00013698,2]
[335711431,1724458247101,-941.32,0.00013698,2]
[335711432,1724458247110,-500.0,0.00013698,2]
[335711433,1724458247119,-1285.34,0.00013698,2]
[335711434,1724458247129,-2673.06,0.00013698,2]
[335711435,1724458247146,-500.0,0.00013698,2]
[335711436,1724458247156,-688.59,0.00013698,2]
[335711437,1724458247166,-3517.15,0.00013698,2]
[335711438,1724458247175,-598.65,0.00013698,2]
[335711439,1724458247185,-505.32442441,0.00013698,2]
[335711440,1724458247194,-892.89,0.00013698,2]
[335711441,1724458247205,-626.12,0.00013698,2]
[335711442,1724458247216,-500.0,0.00013698,2]
[335711443,1724458247227,-500.0,0.00013698,2]
[335711444,1724458247238,-279.88683784,0.00013698,2]
[335711445,1724458247249,-500.0,0.00013698,2]
[335711446,1724458247259,-3005.5,0.00013698,2]
[335711447,1724458247268,-667.62,0.00013698,2]
[335711448,1724458247278,-866.68,0.00013698,2]
[335711449,1724458247287,-500.0,0.00013698,2]
[335711450,1724458247296,-634.53,0.00013698,2]
[335711451,1724458247306,-500.0,0.00013698,2]
[335711452,1724458247317,-3000.0,0.00013699,2]
[335711453,1724458247326,-1701.550626,0.00013699,2]
[335711454,1724458247336,-195.13349832,0.00013699,2]
[335711455,1724458247345,-594.32306372,0.00013699,2]
[335711456,1724458247355,-594.32306372,0.00013699,2]
[335711457,1724458247364,-594.32306372,0.00013699,2]
[335711458,1724458247374,-594.32306372,0.00013699,2]
[335711459,1724458247384,-594.32306372,0.00013699,2]
[335711460,1724458247393,-594.32306372,0.00013699,2]
[335711461,1724458247402,-594.32306372,0.00013699,2]
[335711462,1724458247411,-594.32306372,0.00013699,2]
[335711463,1724458247421,-594.32306372,0.00013699,2]
[335711464,1724458247430,-594.32306372,0.00013699,2]
[335711465,1724458247440,-594.32306372,0.00013699,2]
[335711466,1724458247450,-594.32306372,0.00013699,2]
[335711467,1724458247460,-594.32306372,0.00013699,2]
[335711468,1724458247469,-594.32306372,0.00013699,2]
[335711469,1724458247479,-594.32306372,0.00013699,2]
[335711470,1724458247488,-594.32306372,0.00013699,2]
[335711471,1724458247498,-594.32306372,0.00013699,2]
[335711472,1724458247507,-594.32306372,0.00013699,2]
[335711473,1724458247516,-594.32306372,0.00013699,2]
[335711474,1724458247526,-594.32306372,0.00013699,2]
[335711475,1724458247535,-594.32306372,0.00013699,2]
[335711476,1724458247545,-594.32306372,0.00013699,2]
[335711477,1724458247554,-594.32306372,0.00013699,2]
[335711478,1724458247564,-594.32306372,0.00013699,2]
[335711479,1724458247574,-594.32306372,0.00013699,2]
[335711480,1724458247585,-594.32306372,0.00013699,2]
[335711481,1724458247594,-594.32306372,0.00013699,2]
[335711482,1724458247604,-594.32306372,0.00013699,2]
[335711483,1724458247614,-594.32306372,0.00013699,2]
[335711484,1724458247623,-594.32306372,0.00013699,2]
[335711485,1724458247634,-594.32306372,0.00013699,2]
[335711486,1724458247644,-594.32306372,0.00013699,2]
[335711487,1724458247654,-594.32306372,0.00013699,2]
[335711488,1724458247664,-594.32306372,0.00013699,2]
[335711489,1724458247674,-594.32306372,0.00013699,2]
[335711490,1724458247684,-594.32306372,0.00013699,2]
[335711491,1724458247694,-594.32306372,0.00013699,2]
[335711492,1724458247703,-594.32306372,0.00013699,2]
[335711493,1724458247713,-594.32306372,0.00013699,2]
[335711494,1724458247723,-594.32306372,0.00013699,2]
[335711495,1724458247733,-594.32306372,0.00013699,2]
[335711496,1724458247743,-594.32306372,0.00013699,2]
[335711497,1724458247752,-594.32306372,0.00013699,2]
[335711498,1724458247762,-594.32306372,0.00013699,2]
[335711499,1724458247771,-594.32306372,0.00013699,2]
[335711500,1724458247780,-594.32306372,0.00013699,2]
[335711501,1724458247792,-594.32306372,0.00013699,2]
[335711502,1724458247802,-594.32306372,0.00013699,2]
[335711503,1724458247812,-594.32306372,0.00013699,2]
[335711504,1724458247822,-594.32306372,0.00013699,2]
[335711505,1724458247832,-594.32306372,0.00013699,2]
[335711506,1724458247843,-607.26130565,0.00013699,2]
[335711507,1724458247853,-607.26130565,0.00013699,2]
[335711508,1724458247863,-607.26130565,0.00013699,2]
[335711509,1724458247874,-607.26130565,0.00013699,2]
[335711510,1724458247885,-607.26130565,0.00013699,2]
[335711511,1724458247895,-607.26130565,0.00013699,2]
[335711512,1724458247905,-607.26130565,0.00013699,2]
[335711513,1724458247916,-607.26130565,0.00013699,2]
[335711514,1724458247926,-607.26130565,0.00013699,2]
[335711515,1724458247935,-607.26130565,0.00013699,2]
[335711516,1724458247944,-607.26130565,0.00013699,2]
[335711517,1724458247954,-607.26130565,0.00013699,2]
[335711518,1724458247965,-607.26130565,0.00013699,2]
[335711519,1724458247974,-607.26130565,0.00013699,2]
[335711520,1724458247984,-607.26130565,0.00013699,2]
[335711521,1724458247993,-607.26130565,0.00013699,2]
[335711522,1724458248003,-607.26130565,0.00013699,2]
[335711523,1724458248012,-607.26130565,0.00013699,2]
[335711524,1724458248021,-607.26130565,0.00013699,2]
[335711525,1724458248031,-607.26130565,0.00013699,2]
[335711526,1724458248041,-607.26130565,0.00013699,2]
[335711527,1724458248050,-150.112233,0.000137,2]
[335711528,1724458248060,-150.112233,0.000137,2]
[335711529,1724458248069,-150.112233,0.000137,2]
[335711530,1724458248079,-150.112233,0.000137,2]
[335711531,1724458248089,-173.505293,0.000137,2]
[335711532,1724458248098,-150.112233,0.000138,2]
[335711533,1724458248108,-150.112233,0.000138,2]
[335711534,1724458248117,-150.112233,0.000138,2]
[335711535,1724458248127,-150.112233,0.000138,2]
[335711536,1724458248138,-150.112233,0.000138,2]
[335711537,1724458248147,-150.112233,0.000138,2]
[335711538,1724458248157,-150.112233,0.000138,2]
[335711539,1724458248167,-150.112233,0.000138,2]
[335711540,1724458248176,-150.112233,0.000138,2]
[335711541,1724458248187,-150.112233,0.000138,2]
[335711542,1724458248196,-5907.14511492,0.00013892,2]
[335711543,1724458248206,-150.112233,0.000139,2]
[335711544,1724458248215,-150.112233,0.000139,2]
[335711545,1724458248225,-150.112233,0.000139,2]
[335711546,1724458248235,-150.112233,0.000139,2]
[335711547,1724458248245,-150.112233,0.000139,2]
[335711548,1724458248254,-150.112233,0.000139,2]
[335711549,1724458248263,-150.112233,0.000139,2]
[335711550,1724458248272,-150.112233,0.000139,2]
[335711551,1724458248281,-150.112233,0.000139,2]
[335711552,1724458248291,-150.112233,0.000139,2]
[335711553,1724458248300,-1107.58,0.00013971,2]
[335711554,1724458248309,-1107.58,0.00013971,2]
[335711555,1724458248319,-1107.58,0.00013971,2]
[335711556,1724458248329,-1107.58,0.00013971,2]
[335711557,1724458248338,-1107.58,0.00013971,2]
[335711558,1724458248349,-1107.58,0.00013971,2]
[335711559,1724458248358,-1107.60197633,0.00013971,2]
[335711560,1724458248368,-158.15745652,0.00013971,2]
[335711561,1724458248378,-1032.06,0.00013972,2]
[335711562,1724458248388,-500.0,0.00013972,2]
[335711563,1724458248398,-1630.07,0.00013972,2]
[335711564,1724458248407,-500.0,0.00013972,2]
[335711565,1724458248417,-500.0,0.00013972,2]
[335711566,1724458248426,-500.0,0.00013972,2]
[335711567,1724458248435,-500.0,0.00013972,2]
[335711568,1724458248444,-500.0,0.00013972,2]
[335711569,1724458248454,-590.81,0.00013972,2]
[335711570,1724458248463,-500.0,0.00013972,2]
[335711571,1724458248472,-500.0,0.00013972,2]
[335711572,1724458248481,-985.45,0.00013972,2]
[335711573,1724458248491,-500.0,0.00013972,2]
[335711574,1724458248501,-260.36224817,0.00013972,2]
[335711575,1724458248511,-500.0,0.00013972,2]
[335711576,1724458248520,-500.0,0.00013972,2]
[335711577,1724458248530,-500.0,0.00013972,2]
[335711578,1724458248540,-500.0,0.00013972,2]
[335711579,1724458248549,-500.0,0.00013972,2]
[335711580,1724458248559,-500.0,0.00013972,2]
[335711581,1724458248568,-2522.19,0.00013972,2]
[335711582,1724458248578,-500.0,0.00013972,2]
[335711583,1724458248587,-1076.88,0.00013972,2]
[335711584,1724458248596,-500.0,0.00013972,2]
[335711585,1724458248605,-500.0,0.00013972,2]
[335711586,1724458248615,-762.88,0.00013972,2]
[335711587,1724458248626,-772.05,0.00013972,2]
[335711588,1724458248637,-500.0,0.00013972,2]
[335711589,1724458248646,-603.74,0.00013972,2]
[335711590,1724458248656,-500.0,0.00013972,2]
[335711591,1724458248667,-500.0,0.00013972,2]
[335711592,1724458248676,-500.0,0.00013972,2]
[335711593,1724458248687,-500.0,0.00013972,2]
[335711594,1724458248697,-500.0,0.00013972,2]
[335711595,1724458248706,-500.0,0.00013972,2]
[335711596,1724458248855,-500.0,0.00013972,2]
[335711597,1724458248866,-826.66,0.00013972,2]
[335711598,1724458248878,-448.73,0.00013972,2]
[335711599,1724458248888,-705.68,0.00013972,2]
[335711600,1724458248897,-500.0,0.00013972,2]
[335711601,1724458248906,-611.06677604,0.00013972,2]
[335711602,1724458248916,-500.0,0.00013972,2]
[335711603,1724458248926,-500.0,0.00013972,2]
[335711604,1724458248936,-500.0,0.00013972,2]
[335711605,1724458248946,-500.0,0.00013972,2]
[335711606,1724458248960,-500.0,0.00013972,2]
[335711607,1724458248969,-364.82098739,0.00013972,2]
[335711608,1724458248980,-500.0,0.00013972,2]
[335711609,1724458248990,-500.0,0.00013972,2]
[335711610,1724458249000,-573.75,0.00013972,2]
[335711611,1724458249009,-1081.19,0.00013972,2]
[335711612,1724458249019,-500.0,0.00013972,2]
[335711613,1724458249029,-519.57,0.00013972,2]
[335711614,1724458249040,-500.0,0.00013972,2]
[335711615,1724458249049,-518.74,0.00013972,2]
[335711616,1724458249060,-1268.6,0.00013972,2]
[335711617,1724458249070,-822.22,0.00013972,2]
[335711618,1724458249079,-687.36,0.00013972,2]
[335711619,1724458249089,-2268.62,0.00013972,2]
[335711620,1724458249098,-500.0,0.00013972,2]
[335711621,1724458249108,-500.0,0.00013972,2]
[335711622,1724458249118,-395.02630371,0.00013972,2]